fUST/lending_fUST_20251220
["ID","MTS","AMOUNT","RATE_DAILY","PERIOD"]
[399211370,1766172189660,174.31,0.000104,2]
[399211371,1766172257074,237.0,0.00014239,2]
[399211372,1766172257479,474.0,0.00015533,2]
[399211422,1766172304109,500.99949186,0.00013699,2]
[399211423,1766172336966,227.95,0.00011433,2]
[399211424,1766172337384,455.9,0.00012473,2]
[399211425,1766172337819,683.85,0.00013512,2]
[399211426,1766172338227,911.8,0.00014552,2]
[399211427,1766172338660,1139.74,0.00015591,2]
[399211428,1766172415668,184.43,0.00011438,2]
[399211429,1766172416052,368.86,0.00012478,2]
[399211430,1766172416437,553.29,0.00013517,2]
[399211431,1766172416842,737.72,0.00014557,2]
[399211432,1766172417741,922.16,0.00015597,2]
[399211433,1766172494132,150.0,0.00012784,2]
[399211434,1766172494521,298.44,0.00013946,2]
[399211435,1766172494933,447.67,0.00015108,2]
[399211436,1766172520069,200.0,8e-05,7]
[399211440,1766172574907,150.0,0.00012674,2]
[399211441,1766172575206,293.17,0.00013827,2]
[399211442,1766172575615,439.76,0.00014979,2]
[399211493,1766172632264,-586.34,0.00016131,2]
[399211494,1766172632275,-654.0,0.00016131,2]
[399211495,1766172632285,-5000.0,0.00016243,2]
[399211496,1766172632295,-247.03398087,0.00016408,2]
[399211497,1766172632305,-165.414,0.0001649,2]
[399211498,1766172632314,-1200.0,0.00016721,2]
[399211499,1766172632323,-3352.79668206,0.00016722,2]
[399211500,1766172632333,-300.0,0.00016723,2]
[399211501,1766172632343,-17170.0014387,0.00016792,2]
[399211502,1766172632352,-544.4744759,0.00016792,2]
[399211503,1766172632361,-36850.53194992,0.00016817,2]
[399211504,1766172632373,-12602.99474814,0.00016817,2]
[399211505,1766172632382,-578.16,0.00016817,3]
[399211506,1766172632392,-500.0,0.00016826,2]
[399211507,1766172632401,-500.0,0.00016826,2]
[399211508,1766172632410,-193.8046928,0.00016826,2]
[399211509,1766172632420,-222.23513475,0.00016826,2]
[399211510,1766172632429,-402.21246167,0.00016826,2]
[399211511,1766172632440,-272.58871617,0.00016826,2]
[399211512,1766172632450,-200.65670343,0.00016826,2]
[399211513,1766172632459,-378719.06742124,0.00016827,2]
[399211543,1766172638188,-435.0,0.00016816,2]
[399211550,1766172638249,-65.0,0.00016816,2]
[399211552,1766172638259,-500.0,0.00016816,2]
[399211554,1766172638269,-500.0,0.00016816,2]
[399211556,1766172638283,-500.0,0.00016816,2]
[399211558,1766172638293,-500.0,0.00016816,2]
[399211560,1766172638302,-500.0,0.00016816,2]
[399211562,1766172638313,-500.0,0.00016816,2]
[399211564,1766172638323,-500.0,0.00016816,2]
[399211566,1766172638333,-500.0,0.00016816,2]
[399211568,1766172638343,-224.86688542,0.00016816,2]
[399211570,1766172638353,-500.0,0.00016816,2]
[399211572,1766172638363,-500.0,0.00016816,2]
[399211574,1766172638372,-500.0,0.00016816,2]
[399211576,1766172638382,-500.0,0.00016816,2]
[399211578,1766172638391,-500.0,0.00016816,2]
[399211580,1766172638400,-500.0,0.00016816,2]
[399211584,1766172638410,-500.0,0.00016816,2]
[399211587,1766172638420,-610.24751081,0.00016816,2]
[399211589,1766172638430,-500.0,0.00016816,2]
[399211591,1766172638440,-185.18614297,0.00016816,2]
[399211594,1766172638450,-500.0,0.00016816,2]
[399211596,1766172638460,-500.0,0.00016816,2]
[399211598,1766172638469,-1575.56906104,0.00016827,2]
[399211600,1766172638482,-3032.07899266,0.00016827,2]
[399211602,1766172638493,-570.7436941,0.00016827,2]
[399211604,1766172638504,-961.71379467,0.00016827,2]
[399211607,1766172638516,-1703.45085993,0.00016827,2]
[399211609,1766172638529,-562.31420507,0.00016827,2]
[399211611,1766172638541,-2472.99554256,0.00016827,2]
[399211767,1766172640341,-890.80323467,0.00016827,2]
[399211780,1766172640454,-3e-08,0.00016827,2]
[399211789,1766172640527,-528.89051107,0.00016827,2]
[399211791,1766172640538,-733.73686278,0.00016827,2]
[399211793,1766172640550,-3080.82232218,0.00016827,2]
[399212075,1766172643259,-420.0,0.00016827,2]
[399212088,1766172643367,-1959.42071875,0.00016827,2]
[399212145,1766172646474,-778.77913156,0.00016827,2]
[399212148,1766172646530,-2357.72674961,0.00016827,2]
[399212161,1766172663577,500.0,0.00013273,2]
[399212162,1766172663718,916.35748466,0.00013821,2]
[399212163,1766172663746,505.34890486,0.00013273,2]
[399212164,1766172666762,502.51117443,0.00013699,2]
[399212165,1766172731723,152.84,0.0001346,2]
[399212166,1766172732144,305.68,0.00014684,2]
[399212167,1766172732586,458.52,0.00015907,2]
[399212168,1766172740731,300.0,0.00014682,120]
[399212173,1766172807219,150.0,0.00014179,2]
[399212174,1766172807650,282.34,0.00015468,2]
[399212175,1766172886146,150.0,0.0001368,2]
[399212176,1766172886571,271.33,0.00014924,2]
[399212177,1766172965180,150.0,0.00013697,2]
[399212178,1766172965233,501.58527591,0.00013273,2]
[399212179,1766172966083,260.61,0.00014942,2]
[399212180,1766172971363,333.0,0.00016,2]
[399212181,1766173015435,458.51936435,0.00016,2]
[399212182,1766173044480,150.0,0.00014195,2]
[399212184,1766173121660,-599.99999997,0.00015636,2]
[399212185,1766173124879,150.0,0.00012764,2]
[399212186,1766173125388,246.34,0.00013925,2]
[399212187,1766173187748,300.0,0.00014223,120]
[399212188,1766173197437,4541.48063565,0.00015,2]
[399212189,1766173203766,150.0,0.00012238,2]
[399212190,1766173204625,236.25,0.0001335,2]
[399212191,1766173205036,354.37,0.00014463,2]
[399212192,1766173282934,150.0,0.00012327,2]
[399212193,1766173283354,217.4,0.00013448,2]
[399212194,1766173283948,326.09,0.00014569,2]
[399212195,1766173606048,150.0,0.00013468,2]
[399212196,1766173606446,199.74,0.00014693,2]
[399212227,1766173832234,-250.8023188,0.00015134,2]
[399212228,1766173832244,-638.0,0.00015134,2]
[399212229,1766173832254,-167.4843,0.00015472,2]
[399212230,1766173832263,-264.83775466,0.00015472,2]
[399212231,1766173832272,-101.88432126,0.00015636,2]
[399212232,1766173832284,-6412.24984067,0.00015636,2]
[399212233,1766173832293,-1200.0,0.00016124,2]
[399212234,1766173832302,-1192.23787274,0.00016125,2]
[399212235,1766173832311,-300.0,0.00016182,2]
[399212236,1766173832443,-300.0,0.00016182,2]
[399212237,1766173832453,-268168.3225186,0.00016591,2]
[399212256,1766173838243,-224.79782138,0.0001659,2]
[399212258,1766173838252,-500.0,0.0001659,2]
[399212260,1766173838262,-631.54872317,0.0001659,2]
[399212262,1766173838272,-196.37669565,0.0001659,2]
[399212264,1766173838282,-500.0,0.0001659,2]
[399212266,1766173838292,-500.0,0.0001659,2]
[399212268,1766173838302,-500.0,0.0001659,2]
[399212270,1766173838312,-545.81499165,0.0001659,2]
[399212272,1766173838321,-430.38007753,0.0001659,2]
[399212274,1766173838331,-480.39804252,0.0001659,2]
[399212276,1766173838340,-500.0,0.0001659,2]
[399212278,1766173838350,-492.795781,0.00016591,2]
[399212280,1766173838361,-2379.5341711,0.00016591,2]
[399212283,1766173838373,-4247.00643768,0.00016591,2]
[399212285,1766173838386,-776.68808795,0.00016591,2]
[399212287,1766173838398,-792.07287367,0.00016591,2]
[399212294,1766173838430,-19037.16580179,0.00016591,2]
[399212527,1766173840608,-41534.54233792,0.00016591,2]
[399212534,1766173840661,-27471.32586752,0.00016591,2]
[399213002,1766173873611,500.0,0.00013273,2]
[399213003,1766173878763,500.0,0.00013699,2]
[399213004,1766173879228,500.0,0.00013699,2]
[399213005,1766173881447,500.0,0.00013273,2]
[399213006,1766173881607,1000.0,0.00013821,2]
[399213007,1766173883787,500.0,0.00013273,2]
[399213008,1766173883825,1000.0,0.00013821,2]
[399213009,1766173885375,500.0,0.00013699,2]
[399213010,1766173888694,500.0,0.00013699,2]
[399213011,1766173888807,300.0,0.00013673,2]
[399213012,1766173890691,500.0,0.00013699,2]
[399213013,1766173891766,1000.0,0.00013821,2]
[399213014,1766173891849,500.0,0.00013273,2]
[399213015,1766173925565,500.0,0.00013273,2]
[399213016,1766173925621,1000.0,0.00013821,2]
[399213017,1766173983164,500.0,0.00013273,2]
[399213018,1766173983218,1000.0,0.00013821,2]
[399213019,1766173983274,1500.0,0.00014368,2]
[399213020,1766173983341,500.0,0.00013699,2]
[399213021,1766173983409,1000.0,0.00014247,2]
[399213022,1766173985856,500.0,0.00013699,2]
[399213023,1766173985891,1000.0,0.00014247,2]
[399213024,1766173986005,500.0,0.00013699,2]
[399213025,1766173986050,500.0,0.00013273,2]
[399213026,1766173986077,1000.0,0.00014247,2]
[399213027,1766173986112,500.0,0.00013273,2]
[399213028,1766173986140,328.32936435,0.00013821,2]
[399213029,1766173986164,671.67063565,0.00013821,2]
[399213030,1766173986197,1000.0,0.00013821,2]
[399213031,1766173987019,500.0,0.00013273,2]
[399213032,1766173987050,500.0,0.00013273,2]
[399213033,1766173987095,-1001.45039568,0.00014368,2]
[399213034,1766173987117,-783.71981445,0.00014368,2]
[399213035,1766173987148,1000.0,0.00013821,2]
[399213036,1766173987179,1000.0,0.00013821,2]
[399213037,1766173988807,-716.28018555,0.00014368,2]
[399213038,1766173988829,-483.71981445,0.00014368,2]
[399213039,1766173990937,-198.02041339,0.00014368,2]
[399213040,1766173994052,500.0,0.00013273,2]
[399213041,1766173994102,500.0,0.00013821,2]
[399213042,1766173999916,500.0,0.00013699,2]
[399213043,1766174000166,500.0,0.00013699,2]
[399213044,1766174004407,589.01047821,0.00013273,2]
[399213045,1766174006399,500.0,0.00013699,2]
[399213046,1766174009824,500.0,0.00013699,2]
[399213047,1766174009856,300.0,0.00013673,2]
[399213048,1766174010914,500.0,0.00013699,2]
[399213049,1766174070314,150.0,0.0001235,2]
[399213050,1766174070711,190.84,0.00013472,2]
[399213051,1766174103219,500.0,0.00013273,2]
[399213052,1766174103334,1000.0,0.00013821,2]
[399213053,1766174119867,500.0,0.00013699,2]
[399213054,1766174120196,500.0,0.00013699,2]
[399213055,1766174126409,500.0,0.00013699,2]
[399213056,1766174129454,500.0,0.00013699,2]
[399213057,1766174129681,300.0,0.00013673,2]
[399213058,1766174130501,500.0,0.00013699,2]
[399213059,1766174148736,150.0,0.00010637,2]
[399213060,1766174149154,182.17,0.00011604,2]
[399213061,1766174149555,273.25,0.00012571,2]
[399213062,1766174150019,364.33,0.00013537,2]
[399213063,1766174163517,500.0,0.00013699,2]
[399213064,1766174164006,1000.0,0.00013821,2]
[399213065,1766174164060,500.0,0.00013273,2]
[399213066,1766174222953,500.0,0.00013699,2]
[399213067,1766174222982,1000.0,0.00013821,2]
[399213068,1766174223100,500.0,0.00013273,2]
[399213069,1766174225313,500.0,0.00013699,2]
[399213070,1766174228381,150.0,0.0001257,2]
[399213071,1766174228847,157.48,0.00013713,2]
[399213072,1766174284468,500.0,0.00013699,2]
[399213073,1766174343059,184.69882585,0.00013273,2]
[399213074,1766174343083,500.0,0.00013273,2]
[399213075,1766174343129,1000.0,0.00013821,2]
[399213076,1766174391088,150.0,0.00010956,2]
[399213077,1766174391502,150.0,0.00011952,2]
[399213078,1766174391884,224.48,0.00012948,2]
[399213079,1766174392271,299.31,0.00013944,2]
[399213081,1766174463616,500.0,0.00013273,2]
[399213082,1766174463663,1000.0,0.00013821,2]
[399213083,1766174470101,-300.0,0.00014245,2]
[399213084,1766174470128,-822.0,0.00014246,2]
[399213085,1766174470156,-261.0,0.00014246,2]
[399213086,1766174470184,-1200.0,0.00014246,2]
[399213087,1766174470212,-624.0,0.00014246,2]
[399213088,1766174470240,-259.54099957,0.00014246,2]
[399213089,1766174470267,-1000.0,0.00014247,2]
[399213090,1766174470294,-66.92800086,0.00014247,2]
[399213091,1766174470324,150.0,0.00012647,2]
[399213092,1766174470767,150.0,0.00013796,2]
[399213093,1766174479094,500.0,0.00013273,2]
[399213094,1766174479143,1000.0,0.00013821,2]
[399213095,1766174481609,-933.07199914,0.00014247,2]
[399213096,1766174481648,-1000.0,0.00014247,2]
[399213097,1766174481678,-1000.0,0.00014247,2]
[399213098,1766174488517,500.0,0.00013273,2]
[399213099,1766174489311,500.0,0.00013699,2]
[399213100,1766174549260,150.0,0.00012658,2]
[399213101,1766174549673,150.0,0.00013809,2]
[399213102,1766174587096,500.0,0.00013699,2]
[399213103,1766174594152,500.0,0.00013273,2]
[399213104,1766174594198,1000.0,0.00013821,2]
[399213105,1766174608212,500.0,0.00013699,2]
[399213106,1766174610384,500.0,0.00013699,2]
[399213107,1766174611472,500.0,0.00013699,2]
[399213108,1766174627976,150.0,0.00012766,2]
[399213109,1766174628419,150.0,0.00013926,2]
[399213110,1766174704795,500.0,0.00013273,2]
[399213111,1766174704834,500.0,0.00013821,2]
[399213112,1766174705238,150.0,0.00012666,2]
[399213113,1766174705754,150.0,0.00013817,2]
[399213114,1766174707009,500.0,0.00013699,2]
[399213115,1766174707932,500.0,0.00013699,2]
[399213116,1766174714946,500.0,0.00013699,2]
[399213117,1766174715184,539.08059748,0.00013273,2]
[399213119,1766174728804,500.73063204,0.00013699,2]
[399213120,1766174729321,300.0,0.00013673,2]
[399213121,1766174732313,565.18167476,0.00013699,2]
[399213122,1766174765075,500.0,0.00013273,2]
[399213123,1766174765128,1000.0,0.00013821,2]
[399213124,1766174823702,160.92940252,0.00013699,2]
[399213125,1766174823731,500.0,0.00013699,2]
[399213126,1766174823811,500.0,0.00013273,2]
[399213127,1766174823855,1000.0,0.00013821,2]
[399213128,1766174824059,500.0,0.00013699,2]
[399213129,1766174826882,500.0,0.00013699,2]
[399213130,1766174828602,334.0876932,0.00013699,2]
[399213131,1766174828623,165.91230683,0.00013699,2]
[399213132,1766174834859,500.0,0.00013699,2]
[399213133,1766174835830,500.0,0.00013273,2]
[399213134,1766174835885,465.42322414,0.00013821,2]
[399213135,1766174842771,500.0,0.00013699,2]
[399213136,1766174843234,500.0,0.00013273,2]
[399213137,1766174843297,500.0,0.00013821,2]
[399213138,1766174847268,500.0,0.00013699,2]
[399213139,1766174847293,500.0,0.00013699,2]
[399213140,1766174849576,300.0,0.00013673,2]
[399213141,1766174883177,250.0,0.00013973,2]
[399213142,1766174906190,-162.94739367,0.0001411,2]
[399213143,1766174911767,842.297289,0.00013699,2]
[399213144,1766174921104,-137.05260633,0.0001411,2]
[399213145,1766174921124,-62.55046549,0.00014151,2]
[399213146,1766174924207,-191.79971409,0.00014151,2]
[399213147,1766174924314,-300.0,0.00014192,2]
[399213148,1766174924335,-81.92376839,0.00014221,2]
[399213149,1766174927361,-117.66330117,0.00014221,2]
[399213150,1766174927381,-295.47230794,0.00014246,2]
[399213151,1766174929625,-242.0,0.00014027,2]
[399213152,1766174929655,-4.52769206,0.00014246,2]
[399213153,1766174929682,-21.50225783,0.00014247,2]
[399213154,1766174931684,-298.32210853,0.00014247,2]
[399213155,1766174936521,-163.81635069,0.00014247,2]
[399213156,1766174938300,-500.0,0.00014247,2]
[399213157,1766174942280,-16.35928295,0.00014247,2]
[399213158,1766174942301,-291.92699429,0.00014247,2]
[399213159,1766174942322,-191.71372276,0.00014247,2]
[399213160,1766174943475,500.0,0.00013699,2]
[399213161,1766174945222,-191.63867484,0.00014246,2]
[399213162,1766174947191,-108.36132516,0.00014246,2]
[399213163,1766174947212,-308.28627724,0.00014247,2]
[399213164,1766174947232,-107.29309051,0.00014247,2]
[399213165,1766174949848,-292.63422556,0.00014247,2]
[399213166,1766174953154,-100.07268393,0.00014247,2]
[399213167,1766174953174,-381.48646246,0.00014247,2]
[399213168,1766174955947,-275.61858441,0.00014247,2]
[399213169,1766174957580,-312.8507098,0.00014247,2]
[399213170,1766174957600,-187.1492902,0.00014247,2]
[399213171,1766174960042,-512.74982559,0.00014247,2]
[399213172,1766174961022,500.0,0.00013699,2]
[399213173,1766174964217,-294.37307002,0.00014247,2]
[399213174,1766174968986,-151.9,0.00014247,2]
[399213175,1766174969385,234.77492936,0.00013699,2]
[399213176,1766174969716,500.0,0.00013699,2]
[399213177,1766174972293,-219.47048863,0.00014247,2]
[399213178,1766174972670,500.0,0.00013699,2]
[399213179,1766174975210,-128.62951137,0.00014247,2]
[399213180,1766174975231,-371.37048863,0.00014247,2]
[399213181,1766174977622,-128.62951137,0.00014247,2]
[399213182,1766174977644,-371.37048863,0.00014247,2]
[399213183,1766174979395,-128.62951137,0.00014247,2]
[399213184,1766174979416,-40.31286292,0.00014367,2]
[399213185,1766174984164,-344.80835296,0.00014367,2]
[399213186,1766174986888,-300.0,0.00014367,2]
[399213187,1766174990607,-339.94237429,0.00014367,2]
[399213188,1766174992642,-174.93640983,0.00014367,2]
[399213189,1766174992664,-28.09164809,0.00014368,2]
[399213190,1766174994747,-122.90835191,0.00014368,2]
[399213191,1766174994770,-30.94085458,0.00014368,2]
[399213192,1766174998689,-120.05914542,0.00014368,2]
[399213193,1766174998709,-39.19886171,0.00014368,2]
[399213194,1766175002779,-300.0,0.00014367,2]
[399213195,1766175002800,-19.85988765,0.00014368,2]
[399213197,1766175003757,500.0,0.00013699,2]
[399213198,1766175005071,188.74662648,0.00013699,2]
[399213199,1766175006115,-270.35160461,0.00014367,2]
[399213200,1766175009452,-500.0,0.00014367,2]
[399213201,1766175013628,-429.64839539,0.00014367,2]
[399213202,1766175013650,-70.35160461,0.00014368,2]
[399213203,1766175015552,-166.49105215,0.00014368,2]
[399213204,1766175021929,-476.05930709,0.00014368,2]
[399213205,1766175023891,-287.09803615,0.00014368,2]
[399213206,1766175023913,-43.95958956,0.00014368,2]
[399213207,1766175026668,-393.27651752,0.00014368,2]
[399213208,1766175030283,-227.74,0.00014368,2]
[399213241,1766175032447,-335.02389292,0.00014368,2]
[399213243,1766175032456,-1000.0,0.00014368,2]
[399213245,1766175032465,-1000.0,0.00014368,2]
[399213247,1766175032475,-1000.0,0.00014368,2]
[399213248,1766175032484,-1000.0,0.00014368,2]
[399213250,1766175032494,-1000.0,0.00014368,2]
[399213252,1766175032503,-1000.0,0.00014368,2]
[399213254,1766175032512,-1000.0,0.00014368,2]
[399213256,1766175032522,-1000.0,0.00014368,2]
[399213258,1766175032532,-1000.0,0.00014368,2]
[399213261,1766175032542,-1000.0,0.00014368,2]
[399213263,1766175032552,-984.58689977,0.00014368,2]
[399213266,1766175032561,-626.0,0.00014368,2]
[399213269,1766175032570,-167.6238655,0.00014368,2]
[399213271,1766175032580,-527.16230118,0.00014368,2]
[399213273,1766175032590,-188.90057262,0.00014513,2]
[399213275,1766175032599,-340.02103072,0.00014513,2]
[399213277,1766175032608,-300.0,0.0001453,2]
[399213280,1766175032617,-300.0,0.0001453,2]
[399213283,1766175032626,-300.0,0.0001453,2]
[399213286,1766175032637,-300.0,0.0001453,2]
[399213289,1766175032646,-300.0,0.0001453,2]
[399213291,1766175032655,-300.0,0.0001453,2]
[399213293,1766175032665,-300.0,0.0001453,2]
[399213295,1766175032675,-300.0,0.0001453,2]
[399213297,1766175032684,-300.0,0.0001453,2]
[399213299,1766175032693,-300.0,0.0001453,2]
[399213301,1766175032702,-300.0,0.0001453,2]
[399213303,1766175032711,-300.0,0.0001453,2]
[399213305,1766175032720,-300.0,0.0001453,2]
[399213307,1766175032729,-300.0,0.0001453,2]
[399213309,1766175032740,-300.0,0.0001453,2]
[399213311,1766175032749,-214.76152743,0.0001457,2]
[399213312,1766175032759,-1000.0,0.00014808,2]
[399213313,1766175032768,-600.0,0.0001482,2]
[399213314,1766175032777,-768.6124219,0.00014824,2]
[399213315,1766175032787,-999.0,0.00015015,2]
[399213316,1766175032795,-183.091834,0.00015068,2]
[399213317,1766175032804,-323.98070976,0.00015268,2]
[399213318,1766175032813,-420.0,0.00015734,2]
[399213319,1766175032822,-1680.0,0.00015804,2]
[399213320,1766175032831,-574.12855637,0.00016043,2]
[399213321,1766175032840,-500.0,0.00016043,2]
[399213322,1766175032852,-500.0,0.00016043,2]
[399213323,1766175032862,-500.0,0.00016043,2]
[399213324,1766175032871,-500.0,0.00016043,2]
[399213325,1766175032880,-500.0,0.00016043,2]
[399213326,1766175032890,-500.0,0.00016043,2]
[399213327,1766175032899,-500.0,0.00016043,2]
[399213329,1766175032908,-500.0,0.00016043,2]
[399213330,1766175032917,-500.0,0.00016043,2]
[399213331,1766175032927,-500.0,0.00016043,2]
[399213333,1766175032937,-500.0,0.00016043,2]
[399213335,1766175032945,-200.0,0.00016043,2]
[399213336,1766175032954,-250.0,0.00016043,2]
[399213338,1766175032963,-250.0,0.00016043,2]
[399213340,1766175032972,-250.0,0.00016043,2]
[399213342,1766175032981,-250.0,0.00016043,2]
[399213344,1766175032990,-172.47773141,0.00016072,2]
[399213346,1766175033000,-300.1332119,0.00016151,2]
[399213349,1766175033009,-317.0,0.00016202,2]
[399213351,1766175033019,-430.86715723,0.00016302,2]
[399213353,1766175033030,-289.13284277,0.00016302,2]
[399213355,1766175033039,-171.75722129,0.00016351,2]
[399213357,1766175033049,-500.0,0.00016351,2]
[399213359,1766175033058,-6.26913594,0.00016351,2]
[399213361,1766175033069,-292.20550412,0.00016351,2]
[399213425,1766175038554,-250.0,0.00016043,2]
[399213428,1766175038564,-201.52535994,0.00016351,2]
[399213431,1766175038574,-215.57936775,0.00016351,2]
[399213434,1766175038584,-500.0,0.00016351,2]
[399213436,1766175038593,-257.1777308,0.00016351,2]
[399213438,1766175038602,-389.40836932,0.00016351,2]
[399213460,1766175038809,-110.59163068,0.00016351,2]
[399213462,1766175038818,-500.0,0.00016351,2]
[399213464,1766175038827,-500.0,0.00016351,2]
[399213466,1766175038836,-510.64404582,0.00016351,2]
[399213468,1766175038846,-500.0,0.00016351,2]
[399213470,1766175038859,-500.0,0.00016351,2]
[399213472,1766175038868,-488.32379139,0.00016351,2]
[399213474,1766175038878,-500.0,0.00016351,2]
[399213476,1766175038887,-500.0,0.00016351,2]
[399213478,1766175038896,-500.0,0.00016351,2]
[399213480,1766175038905,-309.51332936,0.00016351,2]
[399213482,1766175038914,-500.0,0.00016351,2]
[399213484,1766175038925,-963.12478088,0.00016352,2]
[399213487,1766175038936,-2158.23218047,0.00016352,2]
[399213489,1766175038945,-1890.77995008,0.00016387,2]
[399213491,1766175038954,-112019.81116482,0.00016391,2]
[399213720,1766175041098,-3e-08,0.00016351,2]
[399213886,1766175043771,-498.82214919,0.0001639,2]
[399213887,1766175043781,-442.08410621,0.0001639,2]
[399213888,1766175043790,-237.76745993,0.0001639,2]
[399213889,1766175043801,-118002.70641738,0.00016391,2]
[399213890,1766175043813,-323.89483058,0.00016391,2]
[399213891,1766175043826,-8227.64559349,0.00016391,2]
[399213907,1766175069846,2500.0,8.246e-05,2]
[399213908,1766175070882,1442.318,8.246e-05,2]
[399213909,1766175073053,500.0,0.00013699,2]
[399213910,1766175078934,500.0,0.00013699,2]
[399213911,1766175082674,430.12411407,0.00013273,2]
[399213912,1766175086227,-462.96160755,0.00014247,2]
[399213913,1766175086250,-136.16924606,0.00014367,2]
[399213914,1766175086453,190.40973251,0.00013699,2]
[399213915,1766175086825,500.0,0.00013699,2]
[399213916,1766175089299,500.0,0.00013699,2]
[399213917,1766175089878,-226.87085361,0.00014247,2]
[399213918,1766175093583,-197.44307179,0.00014247,2]
[399213919,1766175116702,-398.00074638,0.00014247,2]
[399213920,1766175118959,-177.68532822,0.00014247,2]
[399213921,1766175118981,-322.31467178,0.00014247,2]
[399213922,1766175121221,-177.68532822,0.00014247,2]
[399213923,1766175121243,-250.77000101,0.00014367,2]
[399213924,1766175125342,-113.06075293,0.00014367,2]
[399213925,1766175125366,-206.82586813,0.00014795,2]
[399213926,1766175126290,500.0,0.00013273,2]
[399213927,1766175126331,13.63659758,0.00013821,2]
[399213928,1766175126355,986.36340242,0.00013821,2]
[399213929,1766175126806,500.0,0.00013273,2]
[399213930,1766175128280,-250.0,0.00014368,2]
[399213931,1766175128496,500.0,0.00013699,2]
[399213932,1766175129874,-250.0,0.00014247,2]
[399213933,1766175132510,-250.0,0.00014247,2]
[399213934,1766175136625,-250.0,0.00014247,2]
[399213936,1766175183361,500.0,0.00013273,2]
[399213937,1766175183388,1000.0,0.00013821,2]
[399213938,1766175201741,3164.98108662,0.00014151,2]
[399213939,1766175209362,293.17413187,0.00013699,2]
[399213940,1766175247789,500.0,0.00013273,2]
[399213941,1766175247844,750.0,0.00013821,2]
[399213942,1766175247981,500.0,0.00013699,2]
[399213943,1766175303971,500.0,0.00013273,2]
[399213944,1766175304027,500.0,0.00013821,2]
[399213945,1766175306751,500.0,0.00013273,2]
[399213946,1766175306783,1000.0,0.00013821,2]
[399213947,1766175307004,500.0,0.00013699,2]
[399213948,1766175307160,500.0,0.00013273,2]
[399213949,1766175307214,363.65694537,0.00013821,2]
[399213950,1766175311038,-304.35806304,0.00014247,2]
[399213951,1766175313684,-151.34372274,0.00014247,2]
[399213952,1766175313843,493.60269067,0.00013699,2]
[399213953,1766175314081,599.95843345,0.00013699,2]
[399213954,1766175316039,-180.3732098,0.00014247,2]
[399213955,1766175326679,500.0,0.00013699,2]
[399213956,1766175334552,500.0,0.00013699,2]
[399213957,1766175336246,500.0,0.00013699,2]
[399213958,1766175368695,311.53108574,0.00013699,2]
[399213959,1766175371765,500.0,0.00013699,2]
[399213960,1766175374342,524.83006955,0.00013699,2]
[399213961,1766175423809,500.0,0.00013699,2]
[399213962,1766175426374,500.0,0.00013699,2]
[399213963,1766175426952,500.0,0.00013699,2]
[399213964,1766175427058,500.0,0.00013699,2]
[399213965,1766175436773,206.43077522,0.00013699,2]